[Event "44th Chess Olympiad Open 2022"]
[Site "Chennai"]
[Date "2022.08.02"]
[Round "5.57"]
[White "Sulaiman, Ahmad Ashrafi"]
[Black "Kim, Changhoon"]
[Result "0-1"]
[WhiteElo "1953"]
[BlackElo "1827"]
[Annotator "NA RC"]
[PlyCount "128"]
[EventDate "2022.??.??"]
[TimeControl "60"]

1. d4 {[%emt 0:00:02]} d5 {[%emt 0:00:08]} 2. Bf4 {[%emt 0:00:09]} Nf6 {
[%emt 0:00:58]} 3. e3 {[%emt 0:00:14]} c5 {[%emt 0:00:25]} 4. c3 {[%emt 0:00:
00]} Nc6 {[%emt 0:00:18]} 5. Nd2 {[%emt 0:00:21]} e6 {[%emt 0:00:12]} 6. Ngf3 {
[%emt 0:00:40]} Bd6 {[%emt 0:00:09]} 7. Bg3 {[%emt 0:01:05]} O-O {[%emt 0:00:
00]} 8. Be2 {[%emt 0:00:22]} b6 {[%emt 0:00:19]} 9. O-O {[%emt 0:01:13]} Bb7 {
[%emt 0:00:16]} 10. a4 {[%emt 0:00:35]} Qc7 {[%emt 0:02:42]} 11. Qc2 {[%emt 0:
00:00]} e5 {[%emt 0:01:25]} 12. dxe5 {[%emt 0:00:09]} Nxe5 {[%emt 0:00:09]} 13.
Nxe5 {[%emt 0:02:11]} Bxe5 {[%emt 0:00:06]} 14. Bf3 {[%emt 0:01:00]} Bxg3 {
[%emt 0:03:03]} 15. hxg3 {[%emt 0:00:14]} Rfe8 {[%emt 0:03:02]} 16. Rfd1 {
[%emt 0:06:29]} Rac8 {[%emt 0:02:43]} 17. Qb3 {[%emt 0:05:28]} Bc6 {[%emt 0:00:
00]} 18. Qa3 {[%emt 0:04:56]} Bd7 {[%emt 0:06:42]} 19. Rac1 {[%emt 0:03:48]}
Qc6 {[%emt 0:01:40]} 20. c4 {[%emt 0:00:29]} Qxa4 {[%emt 0:07:14]} 21. cxd5 {
[%emt 0:00:12]} Qxa3 {[%emt 0:00:43]} 22. bxa3 {[%emt 0:00:09]} Ba4 {[%emt 0:
00:00]} 23. Re1 {[%emt 0:00:09]} Red8 {[%emt 0:03:15]} 24. e4 {[%emt 0:03:55]}
b5 {[%emt 0:01:26]} 25. Nf1 {[%emt 0:06:17]} a5 {[%emt 0:05:45]} 26. Ne3 {
[%emt 0:02:42]} c4 {[%emt 0:04:38]} 27. Nf5 {[%emt 0:01:20]} Kf8 {[%emt 0:00:
00]} 28. Ne3 {[%emt 0:02:00]} Nd7 {[%emt 0:00:38]} 29. Bg4 {[%emt 0:00:11]} Rc5
{[%emt 0:00:35]} 30. Bxd7 {[%emt 0:00:23]} Rxd7 {[%emt 0:00:03]} 31. e5 {
[%emt 0:00:23]} Rdxd5 {[%emt 0:03:20]} 32. Nxd5 {[%emt 0:00:15]} Rxd5 {[%emt 0:
00:00]} 33. Re3 {[%emt 0:01:39]} Ke7 {[%emt 0:01:07]} 34. f4 {[%emt 0:03:02]}
Bb3 {[%emt 0:03:24]} 35. Kf2 {[%emt 0:02:30]} Ke6 {[%emt 0:03:24]} 36. Kf3 {
[%emt 0:01:10]} Rd2 {[%emt 0:03:10]} 37. g4 {[%emt 0:00:51]} g6 {[%emt 0:00:43]
} 38. Kg3 {[%emt 0:00:37]} Bc2 {[%emt 0:01:04]} 39. f5+ {[%emt 0:01:54]} gxf5 {
[%emt 0:00:14]} 40. gxf5+ {[%emt 0:00:15]} Bxf5 {[%emt 0:00:58]} 41. a4 {
[%emt 0:30:16]} Bd3 {[%emt 0:32:02]} 42. axb5 {[%emt 0:00:26]} Rb2 {[%emt 0:00:
00]} 43. Ra1 {[%emt 0:03:07]} Rxb5 {[%emt 0:01:06]} 44. Kf4 {[%emt 0:00:17]}
Kd5 {[%emt 0:00:23]} 45. e6 {[%emt 0:01:01]} fxe6 {[%emt 0:00:15]} 46. Re5+ {
[%emt 0:00:07]} Kc6 {[%emt 0:00:24]} 47. Rxe6+ {[%emt 0:05:35]} Kc5 {[%emt 0:
00:00]} 48. Re5+ {[%emt 0:00:59]} Kb4 {[%emt 0:00:15]} 49. Rxb5+ {[%emt 0:00:
00]} Kxb5 {[%emt 0:00:06]} 50. Ke3 {[%emt 0:01:20]} Kb4 {[%emt 0:00:38]} 51.
Kd2 {[%emt 0:04:55]} Be4 {[%emt 0:00:14]} 52. Rh1 {[%emt 0:00:32]} c3+ {
[%emt 0:00:32]} 53. Kc1 {[%emt 0:00:05]} Kc4 {[%emt 0:07:00]} 54. Rh5 {[%emt 0:
00:00]} a4 {[%emt 0:00:30]} 55. g3 {[%emt 0:00:35]} a3 {[%emt 0:06:56]} 56. Ra5
{[%emt 0:01:03]} Kb3 {[%emt 0:03:28]} 57. Rb5+ {[%emt 0:03:38]} Ka4 {[%emt 0:
00:00]} 58. Rb6 {[%emt 0:00:07]} a2 {[%emt 0:00:24]} 59. Ra6+ {[%emt 0:01:13]}
Kb3 {[%emt 0:00:38]} 60. Rb6+ {[%emt 0:03:26]} Kc4 {[%emt 0:00:29]} 61. Ra6 {
[%emt 0:01:44]} Bb1 {[%emt 0:00:26]} 62. Ra4+ {[%emt 0:05:50]} Kd3 {[%emt 0:00:
00]} 63. g4 {[%emt 0:00:40]} h6 {[%emt 0:01:07]} 64. Kd1 {[%emt 0:00:56]} Bc2+
{[%emt 0:00:17]} 0-1

[Event "44th Chess Olympiad Open 2022"]
[Site "Chennai"]
[Date "2022.08.02"]
[Round "5.58"]
[White "Dornbusch, Tatiana"]
[Black "Hinga, Githinji"]
[Result "1-0"]
[WhiteElo "2247"]
[BlackElo "1954"]
[Annotator "RC"]
[PlyCount "175"]
[EventDate "2022.??.??"]
[TimeControl "60"]

1. Nf3 {[%emt 0:00:32]} d5 {[%emt 0:01:04]} 2. c4 {[%emt 0:00:54]} c6 {[%emt 0:
00:00]} 3. g3 {[%emt 0:01:01]} Nf6 {[%emt 0:00:12]} 4. Bg2 {[%emt 0:00:54]} g6
{[%emt 0:00:13]} 5. O-O {[%emt 0:00:30]} Bg7 {[%emt 0:00:06]} 6. d4 {[%emt 0:
00:00]} O-O {[%emt 0:02:07]} 7. Nbd2 {[%emt 0:03:36]} Be6 {[%emt 0:07:20]} 8.
b3 {[%emt 0:03:13]} h6 {[%emt 0:06:54]} 9. Bb2 {[%emt 0:00:55]} Nbd7 {[%emt 0:
00:00]} 10. Re1 {[%emt 0:05:36]} Ne4 {[%emt 0:04:07]} 11. Nxe4 {[%emt 0:06:02]}
dxe4 {[%emt 0:00:12]} 12. Nd2 {[%emt 0:00:30]} f5 {[%emt 0:00:16]} 13. f3 {
[%emt 0:01:45]} Qb6 {[%emt 0:05:34]} 14. e3 {[%emt 0:10:10]} exf3 {[%emt 0:00:
00]} 15. Nxf3 {[%emt 0:00:56]} Rad8 {[%emt 0:22:42]} 16. Qc2 {[%emt 0:02:53]}
Nf6 {[%emt 0:01:42]} 17. Ne5 {[%emt 0:03:42]} Kh7 {[%emt 0:01:12]} 18. Rad1 {
[%emt 0:02:55]} Ne4 {[%emt 0:02:24]} 19. Nd3 {[%emt 0:04:42]} Nf6 {[%emt 0:00:
00]} 20. Kh1 {[%emt 0:05:36]} Qc7 {[%emt 0:00:59]} 21. Nf4 {[%emt 0:13:33]} Bf7
{[%emt 0:01:48]} 22. Bf3 {[%emt 0:00:44]} Ng4 {[%emt 0:07:04]} 23. Bxg4 {
[%emt 0:06:44]} fxg4 {[%emt 0:00:07]} 24. Qe4 {[%emt 0:06:48]} Qd7 {[%emt 0:00:
00]} 25. Rf1 {[%emt 0:02:01]} e5 {[%emt 0:01:18]} 26. Ne2 {[%emt 0:05:34]} Be6
{[%emt 0:02:07]} 27. Qb1 {[%emt 0:00:50]} Rxf1+ {[%emt 0:08:55]} 28. Rxf1 {
[%emt 0:00:02]} exd4 {[%emt 0:01:18]} 29. Nxd4 {[%emt 0:01:19]} Bg8 {[%emt 0:
00:00]} 30. Kg1 {[%emt 0:00:59]} Qe8 {[%emt 0:00:51]} 31. Re1 {[%emt 0:01:07]}
Qe5 {[%emt 0:00:32]} 32. Re2 {[%emt 0:01:03]} Qf6 {[%emt 0:01:17]} 33. Rf2 {
[%emt 0:00:41]} Qg5 {[%emt 0:00:23]} 34. Qe4 {[%emt 0:00:26]} a6 {[%emt 0:00:
00]} 35. Kg2 {[%emt 0:00:29]} h5 {[%emt 0:01:59]} 36. Ne6 {[%emt 0:00:25]} Qe7
{[%emt 0:01:00]} 37. Bxg7 {[%emt 0:00:41]} Qxe6 {[%emt 0:00:14]} 38. Qxe6 {
[%emt 0:00:35]} Bxe6 {[%emt 0:00:05]} 39. Bf6 {[%emt 0:00:38]} Rd7 {[%emt 0:00:
00]} 40. e4 {[%emt 0:00:26]} Rf7 {[%emt 0:00:32]} 41. Kf1 {[%emt 0:30:34]} Rd7
{[%emt 0:02:00]} 42. Ke2 {[%emt 0:00:00]} Kg8 {[%emt 0:00:09]} 43. Ke3 {
[%emt 0:00:00]} Kf7 {[%emt 0:01:11]} 44. Bd4+ {[%emt 0:00:00]} Kg8 {[%emt 0:00:
00]} 45. Rf6 {[%emt 0:00:00]} Bf7 {[%emt 0:00:11]} 46. Bc5 {[%emt 0:00:00]} Rd8
{[%emt 0:06:40]} 47. Bd6 {[%emt 0:00:00]} Kg7 {[%emt 0:02:58]} 48. e5 {[%emt 0:
00:00]} a5 {[%emt 0:07:48]} 49. Bc7 {[%emt 0:00:00]} Re8 {[%emt 0:00:55]} 50.
Kd4 {[%emt 0:00:00]} a4 {[%emt 0:01:04]} 51. bxa4 {[%emt 0:00:00]} Re7 {
[%emt 0:05:14]} 52. Bd6 {[%emt 0:00:00]} Re8 {[%emt 0:00:06]} 53. Kc5 {[%emt 0:
00:00]} Ra8 {[%emt 0:01:22]} 54. Kb4 {[%emt 0:00:00]} Ra6 {[%emt 0:00:40]} 55.
Bc7 {[%emt 0:00:09]} c5+ {[%emt 0:02:50]} 56. Kb5 {[%emt 0:04:31]} Be8+ {
[%emt 0:01:17]} 57. Kxc5 {[%emt 0:00:21]} Rxa4 {[%emt 0:00:17]} 58. Rf2 {
[%emt 0:00:39]} Bf7 {[%emt 0:01:18]} 59. Rc2 {[%emt 0:00:45]} Be6 {[%emt 0:00:
00]} 60. Kb5 {[%emt 0:01:03]} Ra6 {[%emt 0:00:28]} 61. Bb6 {[%emt 0:00:36]} Ra8
{[%emt 0:01:26]} 62. Rd2 {[%emt 0:00:24]} Kf7 {[%emt 0:00:39]} 63. a4 {[%emt 0:
00:00]} Ke8 {[%emt 0:00:09]} 64. a5 {[%emt 0:00:23]} Rc8 {[%emt 0:00:19]} 65.
Bc5 {[%emt 0:00:30]} Bd7+ {[%emt 0:01:04]} 66. Kb4 {[%emt 0:00:04]} Bf5 {
[%emt 0:00:21]} 67. Rd4 {[%emt 0:01:46]} Rc6 {[%emt 0:00:43]} 68. Kb5 {[%emt 0:
00:00]} Bd7 {[%emt 0:00:09]} 69. Kb4 {[%emt 0:00:03]} Bf5 {[%emt 0:00:17]} 70.
Bd6 {[%emt 0:00:11]} Be6 {[%emt 0:00:18]} 71. c5 {[%emt 0:00:41]} Bf5 {[%emt 0:
00:00]} 72. Rd2 {[%emt 0:01:08]} Be6 {[%emt 0:00:24]} 73. Rf2 {[%emt 0:00:39]}
Bf5 {[%emt 0:00:18]} 74. e6 {[%emt 0:00:32]} Ra6 {[%emt 0:00:51]} 75. Re2 {
[%emt 0:00:31]} Bd3 {[%emt 0:00:20]} 76. Rf2 {[%emt 0:00:52]} Bf5 {[%emt 0:00:
00]} 77. e7 {[%emt 0:00:19]} Kd7 {[%emt 0:01:18]} 78. Re2 {[%emt 0:00:13]} Ke8
{[%emt 0:00:03]} 79. Rd2 {[%emt 0:00:22]} Bd7 {[%emt 0:00:21]} 80. Ra2 {
[%emt 0:00:11]} Be6 {[%emt 0:00:11]} 81. Ra1 {[%emt 0:00:14]} Bf5 {[%emt 0:00:
00]} 82. Kc4 {[%emt 0:00:17]} Kd7 {[%emt 0:00:20]} 83. Kd4 {[%emt 0:00:47]} Ra8
{[%emt 0:02:00]} 84. Kd5 {[%emt 0:00:29]} Be6+ {[%emt 0:00:38]} 85. Ke5 {
[%emt 0:00:03]} Bf5 {[%emt 0:00:24]} 86. Ra2 {[%emt 0:00:45]} Re8 {[%emt 0:00:
00]} 87. Rb2 {[%emt 0:00:20]} Kc8 {[%emt 0:00:08]} 88. a6 {[%emt 0:00:41]} 1-0

[Event "44th Chess Olympiad Open 2022"]
[Site "Chennai"]
[Date "2022.08.02"]
[Round "5.58"]
[White "Verdier, Patrice"]
[Black "Oluka Robert Mcligeyo"]
[Result "1-0"]
[WhiteElo "2017"]
[BlackElo "1823"]
[Annotator "NA RC"]
[PlyCount "47"]
[EventDate "2022.??.??"]
[TimeControl "60"]

1. d4 {[%emt 0:00:00]} d5 {[%emt 0:00:00]} 2. c4 {[%emt 0:00:00]} e6 {[%emt 0:
00:00]} 3. Nc3 {[%emt 0:00:02]} a6 {[%emt 0:01:00]} 4. Nf3 {[%emt 0:05:20]}
dxc4 {[%emt 0:01:48]} 5. a4 {[%emt 0:03:40]} Nc6 {[%emt 0:00:04]} 6. e3 {
[%emt 0:01:25]} Na5 {[%emt 0:00:05]} 7. Nd2 {[%emt 0:01:06]} Nf6 {[%emt 0:00:
00]} 8. Nxc4 {[%emt 0:01:02]} c5 {[%emt 0:00:07]} 9. Nxa5 {[%emt 0:14:12]} Qxa5
{[%emt 0:00:19]} 10. dxc5 {[%emt 0:02:05]} Bxc5 {[%emt 0:00:06]} 11. Bd3 {
[%emt 0:01:15]} Bb4 {[%emt 0:00:14]} 12. O-O {[%emt 0:03:17]} Bxc3 {[%emt 0:00:
00]} 13. bxc3 {[%emt 0:00:06]} Qxc3 {[%emt 0:00:06]} 14. Ba3 {[%emt 0:00:08]}
Bd7 {[%emt 0:00:22]} 15. Qb1 {[%emt 0:10:35]} Bc6 {[%emt 0:07:42]} 16. Rc1 {
[%emt 0:00:24]} Qa5 {[%emt 0:02:44]} 17. Rxc6 {[%emt 0:05:22]} bxc6 {[%emt 0:
00:00]} 18. Qb7 {[%emt 0:00:07]} Qd8 {[%emt 0:00:20]} 19. Qxc6+ {[%emt 0:00:12]
} Nd7 {[%emt 0:00:09]} 20. Bxa6 {[%emt 0:01:01]} Ra7 {[%emt 0:16:23]} 21. Rc1 {
[%emt 0:11:03]} Ra8 {[%emt 0:26:07]} 22. Qd6 {[%emt 0:00:26]} Rb8 {[%emt 0:00:
00]} 23. Bb5 {[%emt 0:00:36]} Ra8 {[%emt 0:05:23]} 24. Rc7 {[%emt 0:00:27]} 1-0

[Event "44th Chess Olympiad Open 2022"]
[Site "Chennai"]
[Date "2022.08.02"]
[Round "5.58"]
[White "Njoroge, Martin"]
[Black "Ribbegren, Karl Johan"]
[Result "1-0"]
[WhiteElo "1973"]
[BlackElo "2198"]
[Annotator "NA RC"]
[PlyCount "103"]
[EventDate "2022.??.??"]
[TimeControl "60"]

1. d4 {[%emt 0:01:23]} g6 {[%emt 0:00:31]} 2. Nf3 {[%emt 0:08:26]} Bg7 {
[%emt 0:00:57]} 3. e4 {[%emt 0:01:18]} d6 {[%emt 0:01:03]} 4. Bd3 {[%emt 0:00:
00]} Nf6 {[%emt 0:00:31]} 5. c4 {[%emt 0:02:31]} O-O {[%emt 0:02:38]} 6. Nc3 {
[%emt 0:03:19]} e5 {[%emt 0:08:08]} 7. d5 {[%emt 0:00:24]} Na6 {[%emt 0:05:50]}
8. h3 {[%emt 0:01:55]} Nc5 {[%emt 0:02:11]} 9. Be3 {[%emt 0:00:28]} Nxd3+ {
[%emt 0:05:57]} 10. Qxd3 {[%emt 0:01:30]} b6 {[%emt 0:01:24]} 11. g4 {[%emt 0:
00:00]} Nd7 {[%emt 0:03:33]} 12. Qe2 {[%emt 0:03:15]} a5 {[%emt 0:02:20]} 13.
O-O-O {[%emt 0:01:57]} Nc5 {[%emt 0:00:49]} 14. Rdg1 {[%emt 0:00:38]} f6 {
[%emt 0:12:08]} 15. h4 {[%emt 0:02:17]} Kf7 {[%emt 0:02:18]} 16. Nd2 {[%emt 0:
00:00]} Bd7 {[%emt 0:04:21]} 17. f4 {[%emt 0:05:30]} exf4 {[%emt 0:04:28]} 18.
Bxf4 {[%emt 0:00:44]} Qe7 {[%emt 0:01:05]} 19. Rf1 {[%emt 0:03:46]} Kg8 {
[%emt 0:03:37]} 20. h5 {[%emt 0:05:12]} g5 {[%emt 0:00:40]} 21. h6 {[%emt 0:00:
00]} gxf4 {[%emt 0:03:35]} 22. hxg7 {[%emt 0:00:34]} Qxg7 {[%emt 0:00:59]} 23.
Rxf4 {[%emt 0:07:36]} Qg5 {[%emt 0:02:25]} 24. Qh2 {[%emt 0:01:07]} Rf7 {
[%emt 0:01:51]} 25. Kc2 {[%emt 0:02:37]} Re8 {[%emt 0:03:51]} 26. Nf3 {[%emt 0:
00:00]} Qg6 {[%emt 0:00:52]} 27. Nh4 {[%emt 0:01:31]} Qh6 {[%emt 0:02:04]} 28.
Qf2 {[%emt 0:01:44]} Qg5 {[%emt 0:03:53]} 29. Nf5 {[%emt 0:13:03]} Bxf5 {
[%emt 0:00:48]} 30. Rxf5 {[%emt 0:01:14]} Qg6 {[%emt 0:00:23]} 31. Qf4 {
[%emt 0:02:01]} Rg7 {[%emt 0:07:47]} 32. Rg1 {[%emt 0:05:48]} h6 {[%emt 0:00:
00]} 33. Rxf6 {[%emt 0:04:21]} Qg5 {[%emt 0:00:03]} 34. Qf3 {[%emt 0:00:27]}
Nd7 {[%emt 0:02:13]} 35. Rf5 {[%emt 0:00:20]} Ne5 {[%emt 0:00:22]} 36. Qh3 {
[%emt 0:00:37]} Qg6 {[%emt 0:00:37]} 37. g5 {[%emt 0:00:53]} hxg5 {[%emt 0:00:
00]} 38. Rfxg5 {[%emt 0:01:34]} Qxg5 {[%emt 0:00:08]} 39. Rxg5 {[%emt 0:00:32]}
Rxg5 {[%emt 0:00:04]} 40. Nb5 {[%emt 0:00:51]} Re7 {[%emt 0:03:52]} 41. Nd4 {
[%emt 0:04:56]} Rg4 {[%emt 0:02:47]} 42. Qh5 {[%emt 0:05:30]} Rg2+ {[%emt 0:00:
00]} 43. Kb3 {[%emt 0:01:27]} a4+ {[%emt 0:04:12]} 44. Kc3 {[%emt 0:06:27]} Nf7
{[%emt 0:02:51]} 45. Qh3 {[%emt 0:01:33]} Rg6 {[%emt 0:01:03]} 46. Qc8+ {
[%emt 0:01:12]} Kh7 {[%emt 0:00:29]} 47. Nf5 {[%emt 0:02:31]} Rxe4 {[%emt 0:00:
00]} 48. Qxc7 {[%emt 0:01:45]} Rf6 {[%emt 0:04:57]} 49. Nxd6 {[%emt 0:01:15]}
Rf3+ {[%emt 0:03:57]} 50. Kb4 {[%emt 0:00:40]} Ref4 {[%emt 0:01:12]} 51. Nxf7 {
[%emt 0:00:34]} Rxf7 {[%emt 0:00:01]} 52. Qxb6 {[%emt 0:01:03]} 1-0

[Event "44th Chess Olympiad Open 2022"]
[Site "Chennai"]
[Date "2022.08.02"]
[Round "5.58"]
[White "Namale, Ben Nguku"]
[Black "Bagheri, Amir"]
[Result "0-1"]
[WhiteElo "1962"]
[BlackElo "2375"]
[Annotator "RC"]
[PlyCount "88"]
[EventDate "2022.??.??"]
[TimeControl "60"]

1. e4 {[%emt 0:00:02]} c6 {[%emt 0:00:06]} 2. d4 {[%emt 0:00:28]} d5 {[%emt 0:
00:00]} 3. exd5 {[%emt 0:00:34]} cxd5 {[%emt 0:00:08]} 4. Nf3 {[%emt 0:00:38]}
Nc6 {[%emt 0:00:50]} 5. Bd3 {[%emt 0:01:17]} Bg4 {[%emt 0:00:19]} 6. c3 {
[%emt 0:00:05]} e6 {[%emt 0:02:50]} 7. O-O {[%emt 0:07:29]} Bd6 {[%emt 0:00:36]
} 8. Re1 {[%emt 0:00:45]} Nge7 {[%emt 0:00:46]} 9. Nbd2 {[%emt 0:02:25]} Qc7 {
[%emt 0:05:46]} 10. Nf1 {[%emt 0:04:14]} Bh5 {[%emt 0:02:14]} 11. Ng3 {[%emt 0:
00:00]} Bg6 {[%emt 0:00:14]} 12. Be3 {[%emt 0:00:58]} O-O {[%emt 0:00:53]} 13.
Bxg6 {[%emt 0:05:21]} Nxg6 {[%emt 0:06:35]} 14. Qd3 {[%emt 0:04:18]} Rab8 {
[%emt 0:02:25]} 15. Ne2 {[%emt 0:05:23]} b5 {[%emt 0:01:25]} 16. h4 {[%emt 0:
00:00]} Rfc8 {[%emt 0:00:49]} 17. h5 {[%emt 0:06:16]} Nf8 {[%emt 0:00:08]} 18.
Rac1 {[%emt 0:04:53]} Qa5 {[%emt 0:02:42]} 19. a3 {[%emt 0:07:07]} Qd8 {
[%emt 0:01:50]} 20. b4 {[%emt 0:02:39]} a5 {[%emt 0:01:54]} 21. g3 {[%emt 0:00:
00]} Nd7 {[%emt 0:07:02]} 22. Bf4 {[%emt 0:08:15]} Nf6 {[%emt 0:02:21]} 23. Bg5
{[%emt 0:07:26]} Be7 {[%emt 0:06:29]} 24. h6 {[%emt 0:00:46]} g6 {[%emt 0:00:
00]} 25. Kg2 {[%emt 0:02:49]} Ne4 {[%emt 0:02:16]} 26. Bxe7 {[%emt 0:01:29]}
Nxe7 {[%emt 0:06:51]} 27. Qe3 {[%emt 0:04:05]} Nf5 {[%emt 0:02:06]} 28. Qf4 {
[%emt 0:01:14]} g5 {[%emt 0:06:17]} 29. Qg4 {[%emt 0:13:00]} Nxh6 {[%emt 0:00:
00]} 30. Qh5 {[%emt 0:00:25]} Qf6 {[%emt 0:00:15]} 31. g4 {[%emt 0:00:26]} axb4
{[%emt 0:04:24]} 32. axb4 {[%emt 0:00:11]} Ra8 {[%emt 0:01:25]} 33. Ng3 {
[%emt 0:03:28]} Nxg3 {[%emt 0:01:45]} 34. Kxg3 {[%emt 0:01:06]} Qf4+ {[%emt 0:
00:00]} 35. Kg2 {[%emt 0:00:03]} Qxg4+ {[%emt 0:00:17]} 36. Qxg4 {[%emt 0:00:
00]} Nxg4 {[%emt 0:00:12]} 37. Nxg5 {[%emt 0:01:04]} Ra2 {[%emt 0:02:34]} 38.
Nh3 {[%emt 0:00:06]} Ra3 {[%emt 0:00:36]} 39. f3 {[%emt 0:00:56]} Nh6 {[%emt 0:
00:00]} 40. Re3 {[%emt 0:00:24]} Nf5 {[%emt 0:00:08]} 41. Rd3 {[%emt 0:30:05]}
Ra2+ {[%emt 0:30:44]} 42. Nf2 {[%emt 0:00:51]} Kf8 {[%emt 0:04:03]} 43. f4 {
[%emt 0:00:13]} Ke7 {[%emt 0:00:16]} 44. Rh3 {[%emt 0:00:42]} Nxd4 {[%emt 0:00:
00]} 0-1

[Event "44th Chess Olympiad Open 2022"]
[Site "Chennai"]
[Date "2022.08.02"]
[Round "5.59"]
[White "Wanyama, Harold"]
[Black "Salim Mohammed, Salim Al Amri"]
[Result "1-0"]
[WhiteElo "2242"]
[BlackElo "1917"]
[Annotator "NA RC"]
[PlyCount "105"]
[EventDate "2022.??.??"]
[TimeControl "60"]

1. d4 {[%emt 0:00:07]} Nf6 {[%emt 0:00:20]} 2. c4 {[%emt 0:00:17]} e6 {[%emt 0:
00:00]} 3. Nc3 {[%emt 0:00:34]} Bb4 {[%emt 0:00:43]} 4. f3 {[%emt 0:00:26]} c5
{[%emt 0:02:21]} 5. a3 {[%emt 0:01:13]} Bxc3+ {[%emt 0:00:50]} 6. bxc3 {
[%emt 0:00:08]} Nc6 {[%emt 0:00:42]} 7. d5 {[%emt 0:03:28]} Na5 {[%emt 0:01:14]
} 8. e4 {[%emt 0:00:10]} d6 {[%emt 0:00:41]} 9. Bd3 {[%emt 0:00:12]} e5 {
[%emt 0:00:20]} 10. Ne2 {[%emt 0:00:11]} b6 {[%emt 0:00:19]} 11. O-O {[%emt 0:
00:00]} Ba6 {[%emt 0:00:42]} 12. Ng3 {[%emt 0:00:13]} O-O {[%emt 0:01:19]} 13.
f4 {[%emt 0:00:38]} Nd7 {[%emt 0:03:05]} 14. Nf5 {[%emt 0:00:53]} Qf6 {[%emt 0:
00:00]} 15. fxe5 {[%emt 0:00:38]} Qxe5 {[%emt 0:00:33]} 16. Bf4 {[%emt 0:00:22]
} Qf6 {[%emt 0:03:10]} 17. Bxd6 {[%emt 0:00:31]} Kh8 {[%emt 0:00:47]} 18. Bxf8
{[%emt 0:06:56]} Rxf8 {[%emt 0:00:02]} 19. Qe2 {[%emt 0:10:29]} Ne5 {[%emt 0:
00:00]} 20. Nd4 {[%emt 0:00:31]} Qh6 {[%emt 0:03:31]} 21. Nb5 {[%emt 0:00:28]}
Bc8 {[%emt 0:00:29]} 22. Nxa7 {[%emt 0:12:04]} Bg4 {[%emt 0:00:02]} 23. Qe1 {
[%emt 0:00:32]} Nxd3 {[%emt 0:01:55]} 24. Qg3 {[%emt 0:00:06]} Be2 {[%emt 0:00:
00]} 25. Rxf7 {[%emt 0:00:08]} Rg8 {[%emt 0:00:01]} 26. h3 {[%emt 0:00:44]} Nb3
{[%emt 0:00:25]} 27. d6 {[%emt 0:08:32]} Nxa1 {[%emt 0:01:12]} 28. d7 {[%emt 0:
00:00]} Qe6 {[%emt 0:07:14]} 29. Rxg7 {[%emt 0:11:19]} Rf8 {[%emt 0:00:09]} 30.
Nc6 {[%emt 0:06:19]} Qxc6 {[%emt 0:02:30]} 31. Rf7 {[%emt 0:00:20]} Qh6 {
[%emt 0:06:04]} 32. Rxf8+ {[%emt 0:00:31]} Qxf8 {[%emt 0:00:01]} 33. Qg5 {
[%emt 0:00:11]} h6 {[%emt 0:19:49]} 34. d8=Q {[%emt 0:00:44]} hxg5 {[%emt 0:00:
00]} 35. Qxf8+ {[%emt 0:00:15]} Kh7 {[%emt 0:00:02]} 36. Qf7+ {[%emt 0:00:14]}
Kh6 {[%emt 0:01:15]} 37. Qf6+ {[%emt 0:00:29]} Kh7 {[%emt 0:00:14]} 38. Qxg5 {
[%emt 0:00:05]} Nb3 {[%emt 0:00:27]} 39. e5 {[%emt 0:00:13]} Ndc1 {[%emt 0:00:
00]} 40. e6 {[%emt 0:00:12]} Bd3 {[%emt 0:10:19]} 41. e7 {[%emt 0:30:24]} Bg6 {
[%emt 0:31:09]} 42. Qxg6+ {[%emt 0:00:10]} Kxg6 {[%emt 0:00:11]} 43. e8=Q+ {
[%emt 0:00:10]} Kf5 {[%emt 0:00:21]} 44. Qc6 {[%emt 0:00:33]} Ke5 {[%emt 0:00:
00]} 45. Qxb6 {[%emt 0:00:12]} Ke4 {[%emt 0:00:10]} 46. a4 {[%emt 0:00:28]} Ke3
{[%emt 0:01:05]} 47. a5 {[%emt 0:00:24]} Nd2 {[%emt 0:00:15]} 48. Qxc5+ {
[%emt 0:00:22]} Kd3 {[%emt 0:00:17]} 49. Qd4+ {[%emt 0:00:14]} Kc2 {[%emt 0:00:
00]} 50. Qxd2+ {[%emt 0:00:41]} Kxd2 {[%emt 0:00:03]} 51. a6 {[%emt 0:00:08]}
Ke1 {[%emt 0:04:51]} 52. a7 {[%emt 0:00:32]} Ne2+ {[%emt 0:00:13]} 53. Kh2 {
[%emt 0:00:09]} 1-0

[Event "44th Chess Olympiad Open 2022"]
[Site "Chennai"]
[Date "2022.08.02"]
[Round "5.59"]
[White "Nsubuga, Haruna"]
[Black "Al Busaidi, Hamood"]
[Result "1-0"]
[WhiteElo "2160"]
[BlackElo "1743"]
[Annotator "NA"]
[PlyCount "119"]
[EventDate "2022.??.??"]
[TimeControl "60"]

1. d4 {[%emt 0:01:04]} Nf6 {[%emt 0:00:10]} 2. Nf3 {[%emt 0:00:04]} g6 {
[%emt 0:00:08]} 3. g3 {[%emt 0:00:03]} Bg7 {[%emt 0:00:05]} 4. c4 {[%emt 0:00:
00]} c6 {[%emt 0:00:51]} 5. Nc3 {[%emt 0:00:06]} d5 {[%emt 0:00:08]} 6. cxd5 {
[%emt 0:00:17]} cxd5 {[%emt 0:00:06]} 7. Bg2 {[%emt 0:00:01]} O-O {[%emt 0:00:
00]} 8. O-O {[%emt 0:00:01]} Nc6 {[%emt 0:00:27]} 9. Ne5 {[%emt 0:00:09]} Be6 {
[%emt 0:01:44]} 10. Nxc6 {[%emt 0:05:29]} bxc6 {[%emt 0:00:01]} 11. Na4 {
[%emt 0:00:11]} Bf5 {[%emt 0:06:09]} 12. b3 {[%emt 0:03:09]} Rc8 {[%emt 0:00:
00]} 13. Ba3 {[%emt 0:00:33]} Re8 {[%emt 0:02:00]} 14. Bc5 {[%emt 0:03:07]} Qa5
{[%emt 0:05:59]} 15. f3 {[%emt 0:04:00]} h5 {[%emt 0:05:57]} 16. Qe1 {[%emt 0:
00:00]} Qc7 {[%emt 0:04:56]} 17. e4 {[%emt 0:00:50]} dxe4 {[%emt 0:01:06]} 18.
fxe4 {[%emt 0:00:03]} Bg4 {[%emt 0:01:36]} 19. Qf2 {[%emt 0:04:20]} Be6 {
[%emt 0:11:42]} 20. Qf4 {[%emt 0:07:34]} Qxf4 {[%emt 0:16:57]} 21. gxf4 {
[%emt 0:02:42]} Nd7 {[%emt 0:02:18]} 22. e5 {[%emt 0:01:58]} Rc7 {[%emt 0:00:
00]} 23. Rac1 {[%emt 0:04:45]} Bh6 {[%emt 0:05:53]} 24. Ba3 {[%emt 0:01:18]}
Nb8 {[%emt 0:03:57]} 25. d5 {[%emt 0:02:40]} Bf5 {[%emt 0:02:36]} 26. dxc6 {
[%emt 0:05:40]} Bd3 {[%emt 0:00:39]} 27. Rf2 {[%emt 0:01:58]} Bb5 {[%emt 0:00:
00]} 28. Nc3 {[%emt 0:00:27]} Bxc6 {[%emt 0:10:19]} 29. Nd5 {[%emt 0:00:37]}
Rd7 {[%emt 0:02:31]} 30. Nxe7+ {[%emt 0:00:25]} Rexe7 {[%emt 0:01:04]} 31. Bxe7
{[%emt 0:00:39]} Rxe7 {[%emt 0:00:17]} 32. Bxc6 {[%emt 0:03:20]} Rc7 {[%emt 0:
00:00]} 33. Rfc2 {[%emt 0:16:11]} Bxf4 {[%emt 0:00:55]} 34. Ba4 {[%emt 0:00:12]
} Re7 {[%emt 0:03:09]} 35. Rc8+ {[%emt 0:00:37]} Kg7 {[%emt 0:00:09]} 36. Re1 {
[%emt 0:01:11]} Na6 {[%emt 0:00:32]} 37. Re8 {[%emt 0:00:37]} Rc7 {[%emt 0:00:
00]} 38. e6 {[%emt 0:01:16]} fxe6 {[%emt 0:02:48]} 39. R8xe6 {[%emt 0:01:20]}
Nb4 {[%emt 0:00:35]} 40. Be8 {[%emt 0:02:05]} Nd5 {[%emt 0:00:59]} 41. Rxg6+ {
[%emt 0:30:41]} Kh7 {[%emt 0:30:01]} 42. Rge6 {[%emt 0:02:40]} Rg7+ {[%emt 0:
00:00]} 43. Kh1 {[%emt 0:00:09]} h4 {[%emt 0:00:46]} 44. Bc6 {[%emt 0:00:29]}
Ne3 {[%emt 0:00:34]} 45. R6xe3 {[%emt 0:00:55]} Bxe3 {[%emt 0:00:15]} 46. Rxe3
{[%emt 0:00:05]} Rc7 {[%emt 0:00:06]} 47. Rc3 {[%emt 0:01:23]} Kh6 {[%emt 0:00:
00]} 48. Kg2 {[%emt 0:00:51]} Kg5 {[%emt 0:00:01]} 49. Rc4 {[%emt 0:00:24]} Re7
{[%emt 0:00:16]} 50. Bf3 {[%emt 0:00:10]} Rd7 {[%emt 0:00:12]} 51. Rg4+ {
[%emt 0:01:37]} Kf5 {[%emt 0:00:08]} 52. Rxh4 {[%emt 0:00:09]} Rd2+ {[%emt 0:
00:00]} 53. Kg3 {[%emt 0:00:05]} Rxa2 {[%emt 0:00:07]} 54. Ra4 {[%emt 0:00:42]}
Rxa4 {[%emt 0:00:52]} 55. bxa4 {[%emt 0:00:04]} a5 {[%emt 0:00:05]} 56. h4 {
[%emt 0:00:14]} Ke5 {[%emt 0:00:04]} 57. Kg4 {[%emt 0:00:13]} Kf6 {[%emt 0:00:
00]} 58. h5 {[%emt 0:00:08]} Kg7 {[%emt 0:00:07]} 59. Kf5 {[%emt 0:00:31]} Kf7
{[%emt 0:00:05]} 60. Ke5 {[%emt 0:00:23]} 1-0